[Event "Rapid Tournament (RAP)"]
[Site "Biel, Switzerland"]
[Date "2026.07.12"]
[Round "8.35"]
[White "Alrefae, Ahmad"]
[Black "Lachat, Pierre"]
[Result "1-0"]
[TimeControl "15 + 5"]
[WhiteTitle "-"]
[BlackTitle "-"]
[WhiteFideId "10306510"]
[BlackFideId "1310763"]
[WhiteElo "1797"]
[BlackElo "1904"]

1. e4 {[%clk 00:15:09]} c5 {[%clk 00:15:05]} {[%emt 00:00:05]} 2. Nf3 {[%clk
00:15:14]} {[%emt 00:00:03]} Nc6 {[%clk 00:15:09]} 3. d4 {[%clk 00:15:18]}
{[%emt 00:00:02]} cxd4 {[%clk 00:15:12]} {[%emt 00:00:01]} 4. Nxd4 {[%clk
00:15:22]} {[%emt 00:00:01]} g6 {[%clk 00:15:14]} {[%emt 00:00:03]} 5. Be3
{[%clk 00:15:20]} {[%emt 00:00:07]} Bg7 {[%clk 00:15:17]} {[%emt 00:00:02]} 6.
Nc3 {[%clk 00:15:24]} {[%emt 00:00:01]} a6 {[%clk 00:15:20]} {[%emt 00:00:02]}
7. f3 {[%clk 00:15:22]} {[%emt 00:00:07]} Nf6 {[%clk 00:15:16]} {[%emt
00:00:09]} 8. Bc4 {[%clk 00:15:26]} {[%emt 00:00:02]} O-O {[%clk 00:15:18]}
{[%emt 00:00:02]} 9. Bb3 {[%clk 00:15:30]} {[%emt 00:00:01]} d6 {[%clk
00:14:56]} {[%emt 00:00:27]} 10. Qd2 {[%clk 00:15:34]} Na5 {[%clk 00:14:59]}
{[%emt 00:00:02]} 11. O-O-O {[%clk 00:15:29]} {[%emt 00:00:10]} Nxb3+ {[%clk
00:15:01]} {[%emt 00:00:03]} 12. cxb3 {[%clk 00:15:32]} {[%emt 00:00:02]} b5
{[%clk 00:15:03]} {[%emt 00:00:02]} 13. Kb1 {[%clk 00:15:32]} {[%emt 00:00:05]}
Bb7 {[%clk 00:14:57]} {[%emt 00:00:11]} 14. Bh6 {[%clk 00:15:30]} {[%emt
00:00:07]} Rc8 {[%clk 00:14:48]} {[%emt 00:00:14]} 15. g4 {[%clk 00:15:28]}
{[%emt 00:00:08]} Qd7 {[%clk 00:14:35]} {[%emt 00:00:18]} 16. Nf5 {[%clk
00:15:30]} {[%emt 00:00:03]} Ne8 {[%clk 00:14:19]} {[%emt 00:00:20]} 17. Nxg7
{[%clk 00:14:53]} {[%emt 00:00:43]} Nxg7 {[%clk 00:14:22]} {[%emt 00:00:02]} 18.
h4 {[%clk 00:14:49]} {[%emt 00:00:09]} Qe6 {[%clk 00:13:55]} {[%emt 00:00:32]}
19. h5 {[%clk 00:14:40]} {[%emt 00:00:14]} Rfe8 {[%clk 00:13:44]} {[%emt
00:00:16]} 20. hxg6 {[%clk 00:13:24]} {[%emt 00:01:21]} Qxg6 {[%clk 00:13:22]}
{[%emt 00:00:26]} 21. f4 {[%clk 00:12:50]} {[%emt 00:00:39]} Bxe4+ {[%clk
00:13:18]} {[%emt 00:00:10]} 22. Ka1 {[%clk 00:12:51]} {[%emt 00:00:04]} Bxh1
{[%clk 00:13:14]} {[%emt 00:00:09]} 23. Rxh1 {[%clk 00:12:36]} {[%emt
00:00:20]} b4 {[%clk 00:08:46]} {[%emt 00:04:33]} 24. Ne2 {[%clk 00:12:39]}
{[%emt 00:00:02]} Rc2 {[%clk 00:08:45]} {[%emt 00:00:05]} 25. Qd1 {[%clk
00:12:26]} {[%emt 00:00:18]} Rec8 {[%clk 00:06:52]} {[%emt 00:01:59]} 26. f5
{[%clk 00:12:20]} {[%emt 00:00:11]} Qf6 {[%clk 00:06:12]} {[%emt 00:00:44]} 27.
Nc3 {[%clk 00:11:28]} {[%emt 00:00:58]} Rxb2 {[%clk 00:03:34]} {[%emt
00:02:43]} 28. Nd5 {[%clk 00:10:59]} {[%emt 00:00:34]} Qe5 {[%clk 00:03:23]}
{[%emt 00:00:15]} 29. Nxe7+ {[%clk 00:10:53]} {[%emt 00:00:11]} Kf8 {[%clk
00:03:00]} {[%emt 00:00:28]} 30. Bf4 {[%clk 00:09:00]} {[%emt 00:01:58]} Qxf4
{[%clk 00:02:02]} {[%emt 00:01:04]} 31. Nxc8 {[%clk 00:09:03]} {[%emt
00:00:02]} Qe5 {[%clk 00:01:49]} {[%emt 00:00:17]} 32. Qxd6+ {[%clk 00:08:42]}
{[%emt 00:00:26]} Qxd6 {[%clk 00:01:53]} {[%emt 00:00:02]} 33. Nxd6 {[%clk
00:08:45]} {[%emt 00:00:01]} Rd2 {[%clk 00:01:49]} {[%emt 00:00:09]} 34. Nb7
{[%clk 00:08:20]} {[%emt 00:00:31]} Rd4 {[%clk 00:01:40]} {[%emt 00:00:14]} 35.
f6 {[%clk 00:07:33]} {[%emt 00:00:52]} Ne8 {[%clk 00:01:30]} {[%emt 00:00:15]}
36. g5 {[%clk 00:07:32]} {[%emt 00:00:06]} Kg8 {[%clk 00:00:59]} {[%emt
00:00:36]} 37. Rg1 {[%clk 00:07:19]} {[%emt 00:00:17]} Rd5 {[%clk 00:00:52]}
{[%emt 00:00:13]} 38. Kb2 {[%clk 00:07:19]} {[%emt 00:00:05]} h6 {[%clk
00:00:50]} {[%emt 00:00:06]} 39. gxh6+ {[%clk 00:07:20]} {[%emt 00:00:05]} Kh7
{[%clk 00:00:53]} {[%emt 00:00:02]} 40. Rg4 {[%clk 00:07:05]} {[%emt 00:00:20]}
a5 {[%clk 00:00:56]} {[%emt 00:00:02]} 41. Rc4 {[%clk 00:06:14]} {[%emt
00:00:55]} Kxh6 {[%clk 00:00:49]} {[%emt 00:00:12]} 42. Rc5 {[%clk 00:06:17]}
{[%emt 00:00:02]} Rd2+ {[%clk 00:00:49]} {[%emt 00:00:05]} 43. Kb1 {[%clk
00:06:21]} {[%emt 00:00:01]} Nxf6 {[%clk 00:00:47]} {[%emt 00:00:08]} 44. Rxa5
{[%clk 00:06:24]} {[%emt 00:00:02]} Ne4 {[%clk 00:00:47]} {[%emt 00:00:05]} 45.
Nc5 {[%clk 00:06:15]} {[%emt 00:00:14]} Nc3+ {[%clk 00:00:41]} {[%emt
00:00:10]} 46. Kc1 {[%clk 00:06:00]} {[%emt 00:00:20]} Rd5 {[%clk 00:00:27]}
{[%emt 00:00:18]} 47. Kc2 {[%clk 00:05:27]} {[%emt 00:00:39]} Nxa2 {[%clk
00:00:26]} {[%emt 00:00:07]} 48. Ra6+ {[%clk 00:05:17]} {[%emt 00:00:15]} Kh5
{[%clk 00:00:27]} {[%emt 00:00:04]} 49. Ne4 {[%clk 00:05:18]} {[%emt 00:00:04]}
Re5 {[%clk 00:00:20]} {[%emt 00:00:11]} 50. Nf6+ {[%clk 00:05:15]} {[%emt
00:00:09]} Kg5 {[%clk 00:00:19]} {[%emt 00:00:06]} 51. Nh7+ {[%clk 00:05:18]}
{[%emt 00:00:01]} Kg4 {[%clk 00:00:21]} {[%emt 00:00:03]} 52. Rxa2 {[%clk
00:05:22]} {[%emt 00:00:01]} f5 {[%clk 00:00:25]} 53. Ra4 {[%clk 00:05:20]}
{[%emt 00:00:08]} Rb5 {[%clk 00:00:28]} {[%emt 00:00:02]} 54. Kd2 {[%clk
00:05:20]} {[%emt 00:00:05]} Kg3 {[%clk 00:00:31]} {[%emt 00:00:01]} 55. Nf6
{[%clk 00:04:35]} {[%emt 00:00:50]} f4 {[%clk 00:00:31]} {[%emt 00:00:05]} 56.
Ra1 {[%clk 00:04:22]} {[%emt 00:00:18]} f3 {[%clk 00:00:33]} {[%emt 00:00:04]}
57. Ke3 {[%emt 00:00:10]} Re5+ {[%clk 00:00:35]} 58. Ne4 {[%clk 00:04:24]}
{[%emt 00:00:02]} Kg2 {[%clk 00:00:26]} {[%emt 00:00:14]} 59. Ra2+ {[%clk
00:04:26]} {[%emt 00:00:02]} Kg1 {[%clk 00:00:19]} {[%emt 00:00:12]} 60. Kxf3
{[%clk 00:04:29]} {[%emt 00:00:02]} Rd5 {[%clk 00:00:19]} {[%emt 00:00:05]} 61.
Rg2+ {[%clk 00:04:23]} {[%emt 00:00:11]} Kf1 {[%clk 00:00:13]} {[%emt
00:00:10]} 62. Ng3+ {[%clk 00:04:17]} {[%emt 00:00:12]} Ke1 {[%clk 00:00:16]}
{[%emt 00:00:02]} 63. Ke3 {[%clk 00:03:47]} {[%emt 00:00:35]} Kd1 {[%clk
00:00:10]} {[%emt 00:00:11]} 64. Ne4 {[%clk 00:03:32]} {[%emt 00:00:20]} Kc1
{[%clk 00:00:07]} {[%emt 00:00:08]} 65. Rd2 {[%clk 00:03:30]} {[%emt 00:00:07]}
Rh5 {[%clk 00:00:07]} {[%emt 00:00:05]} 66. Rf2 {[%clk 00:03:17]} {[%emt
00:00:18]} Rh3+ {[%clk 00:00:06]} {[%emt 00:00:06]} 67. Rf3 {[%clk 00:03:20]}
{[%emt 00:00:01]} Rh4 {[%clk 00:00:10]} {[%emt 00:00:02]} 68. Kd3 {[%clk
00:03:20]} {[%emt 00:00:04]} Rh8 {[%clk 00:00:12]} {[%emt 00:00:04]} 69. Kc4
{[%clk 00:03:09]} {[%emt 00:00:16]} Rh4 {[%clk 00:00:13]} {[%emt 00:00:03]} 70.
Re3 {[%clk 00:03:07]} {[%emt 00:00:07]} Kc2 {[%clk 00:00:14]} {[%emt 00:00:05]}
71. Re2+ {[%clk 00:02:48]} {[%emt 00:00:24]} Kd1 {[%clk 00:00:17]} {[%emt
00:00:02]} 72. Rd2+ {[%clk 00:02:49]} {[%emt 00:00:04]} Kc1 {[%clk 00:00:20]}
{[%emt 00:00:02]} 73. Rd4 {[%clk 00:02:51]} {[%emt 00:00:03]} Kc2 {[%clk
00:00:20]} {[%emt 00:00:06]} 74. Kxb4 {[%clk 00:02:51]} {[%emt 00:00:05]} Rh3
{[%clk 00:00:23]} {[%emt 00:00:01]} 75. Kc4 {[%clk 00:02:47]} {[%emt 00:00:10]}
Rh8 {[%clk 00:00:14]} {[%emt 00:00:14]} 76. b4 {[%clk 00:02:50]} {[%emt
00:00:02]} Rc8+ {[%clk 00:00:17]} {[%emt 00:00:02]} 77. Nc5 {[%clk 00:02:53]}
{[%emt 00:00:02]} Kb2 {[%clk 00:00:17]} {[%emt 00:00:04]} 78. b5 {[%clk
00:02:57]} {[%emt 00:00:02]} Ka3 {[%clk 00:00:20]} {[%emt 00:00:02]} 79. b6
{[%clk 00:02:59]} {[%emt 00:00:02]} Rb8 {[%clk 00:00:19]} {[%emt 00:00:14]} 80.
Kb5 {[%clk 00:03:06]} {[%emt 00:00:01]} Rh8 {[%clk 00:00:11]} {[%emt 00:00:12]}
81. b7 {[%clk 00:03:08]} {[%emt 00:00:03]} Rg8 {[%clk 00:00:14]} {[%emt
00:00:03]} 82. Ra4+ {[%clk 00:03:08]} {[%emt 00:00:05]} Kb2 {[%clk 00:00:17]}
{[%emt 00:00:02]} 83. Ra8 {[%clk 00:03:12]} 1-0

[Event "Rapid Tournament (RAP)"]
[Site "Biel, Switzerland"]
[Date "2026.07.12"]
[Round "8.36"]
[White "Gheorghiu, Alexandru"]
[Black "Alsaqer, Meshal"]
[Result "0-1"]
[TimeControl "15 + 5"]
[WhiteTitle "-"]
[BlackTitle "-"]
[WhiteFideId "1363573"]
[BlackFideId "10301771"]
[WhiteElo "1647"]
[BlackElo "1903"]

1. d4 {[%clk 00:15:08]} {[%emt 00:00:02]} d5 {[%clk 00:15:08]} {[%emt
00:00:02]} 2. c4 {[%clk 00:15:11]} {[%emt 00:00:02]} e6 {[%clk 00:15:09]}
{[%emt 00:00:02]} 3. Nc3 {[%clk 00:15:14]} {[%emt 00:00:03]} Nf6 {[%clk
00:15:10]} {[%emt 00:00:03]} 4. Bg5 {[%clk 00:15:17]} {[%emt 00:00:03]} Be7
{[%clk 00:15:10]} {[%emt 00:00:05]} 5. Nf3 {[%clk 00:15:20]} {[%emt 00:00:02]}
O-O {[%clk 00:15:09]} {[%emt 00:00:06]} 6. e3 {[%clk 00:15:22]} {[%emt
00:00:03]} h6 {[%clk 00:15:07]} {[%emt 00:00:05]} 7. Bxf6 {[%clk 00:15:26]}
{[%emt 00:00:03]} Bxf6 {[%clk 00:15:09]} {[%emt 00:00:03]} 8. Qb3 {[%clk
00:15:27]} {[%emt 00:00:04]} dxc4 {[%clk 00:14:35]} {[%emt 00:00:38]} 9. Bxc4
{[%clk 00:15:30]} {[%emt 00:00:03]} Nc6 {[%clk 00:14:37]} {[%emt 00:00:03]} 10.
O-O {[%clk 00:15:32]} {[%emt 00:00:03]} Na5 {[%clk 00:14:39]} {[%emt 00:00:03]}
11. Qb4 {[%clk 00:15:34]} {[%emt 00:00:03]} Nxc4 {[%clk 00:14:28]} {[%emt
00:00:16]} 12. Qxc4 {[%clk 00:15:37]} {[%emt 00:00:01]} b6 {[%clk 00:14:12]}
{[%emt 00:00:22]} 13. Rac1 {[%clk 00:15:29]} {[%emt 00:00:13]} Bb7 {[%clk
00:14:10]} {[%emt 00:00:06]} 14. e4 {[%clk 00:15:25]} {[%emt 00:00:09]} Rc8
{[%clk 00:13:36]} {[%emt 00:00:39]} 15. Qd3 {[%clk 00:15:04]} {[%emt 00:00:27]}
c5 {[%clk 00:13:28]} {[%emt 00:00:13]} 16. d5 {[%clk 00:15:02]} {[%emt
00:00:05]} Bxc3 {[%clk 00:13:13]} {[%emt 00:00:22]} 17. bxc3 {[%clk 00:15:05]}
{[%emt 00:00:02]} exd5 {[%clk 00:13:15]} {[%emt 00:00:03]} 18. exd5 {[%clk
00:15:03]} {[%emt 00:00:06]} Qxd5 {[%clk 00:13:09]} {[%emt 00:00:12]} 19. Qxd5
{[%clk 00:14:58]} {[%emt 00:00:10]} Bxd5 {[%clk 00:13:12]} {[%emt 00:00:02]} 20.
c4 {[%clk 00:14:58]} {[%emt 00:00:05]} Bxf3 {[%clk 00:13:11]} {[%emt 00:00:05]}
21. gxf3 {[%clk 00:15:02]} {[%emt 00:00:02]} Rcd8 {[%clk 00:13:01]} {[%emt
00:00:15]} 22. Rcd1 {[%clk 00:15:06]} {[%emt 00:00:01]} Rfe8 {[%clk 00:13:01]}
{[%emt 00:00:04]} 23. Kg2 {[%clk 00:15:08]} {[%emt 00:00:05]} Rxd1 {[%clk
00:12:33]} {[%emt 00:00:33]} 24. Rxd1 {[%clk 00:15:12]} {[%emt 00:00:01]} Re2
{[%clk 00:12:36]} 25. Rd7 {[%clk 00:15:15]} {[%emt 00:00:02]} Rxa2 {[%clk
00:12:38]} {[%emt 00:00:03]} 26. Rd8+ {[%clk 00:15:17]} {[%emt 00:00:03]} Kh7
{[%emt 00:00:11]} 0-1

[Event "Rapid Tournament (RAP)"]
[Site "Biel, Switzerland"]
[Date "2026.07.12"]
[Round "8.37"]
[White "Gheorghiu, Harry"]
[Black "Jehnichen, Kai"]
[Result "0-1"]
[TimeControl "15 + 5"]
[WhiteTitle "-"]
[BlackTitle "-"]
[WhiteFideId "1248839"]
[BlackFideId "24684333"]
[WhiteElo "1751"]
[BlackElo "1903"]

1. e4 {[%clk 00:15:05]} e5 {[%clk 00:15:05]} 2. Bc4 {[%clk 00:15:05]} Nc6
{[%clk 00:15:05]} 3. Nc3 {[%clk 00:15:05]} Nf6 {[%clk 00:15:05]} 4. d3 {[%clk
00:15:05]} Na5 {[%clk 00:15:05]} 5. Bb3 {[%clk 00:15:05]} Nxb3 {[%clk
00:15:05]} 6. axb3 {[%clk 00:15:05]} d5 {[%clk 00:15:05]} 7. exd5 {[%clk
00:15:05]} Nxd5 {[%clk 00:15:05]} 8. Qf3 {[%clk 00:14:55]} {[%emt 02:38:12]}
Nb4 {[%clk 00:15:01]} 9. Qe2 {[%clk 00:14:41]} {[%emt 00:00:40]} Bd6 {[%clk
00:14:51]} 10. Nf3 {[%clk 00:14:18]} {[%emt 00:00:44]} O-O {[%clk 00:14:51]} 11.
O-O {[%clk 00:14:18]} Bg4 {[%clk 00:14:51]} 12. Be3 {[%clk 00:12:50]} {[%emt
00:01:44]} Bxf3 {[%clk 00:14:49]} 13. Qxf3 {[%clk 00:12:50]} Nxc2 {[%clk
00:14:49]} 14. Ra4 {[%clk 00:11:15]} {[%emt 00:02:00]} Nd4 {[%clk 00:14:48]} 15.
Bxd4 {[%clk 00:10:35]} {[%emt 00:00:52]} exd4 {[%clk 00:14:52]} 16. Ne4 {[%clk
00:10:38]} {[%emt 00:00:03]} Be7 {[%clk 00:14:47]} 17. Rc1 {[%clk 00:10:08]}
{[%emt 00:00:45]} b6 {[%clk 00:14:37]} 18. Rac4 {[%clk 00:09:10]} {[%emt
00:01:19]} Rc8 {[%clk 00:14:29]} 0-1

[Event "Rapid Tournament (RAP)"]
[Site "Biel, Switzerland"]
[Date "2026.07.12"]
[Round "8.38"]
[White "Kwiatkowski, Maciej"]
[Black "Gunzinger, Severin"]
[Result "1-0"]
[TimeControl "15 + 5"]
[WhiteTitle "-"]
[BlackTitle "-"]
[WhiteFideId "1360175"]
[BlackFideId "1362518"]
[WhiteElo "1902"]
[BlackElo "1607"]

1. e4 {[%clk 00:15:07]} {[%emt 00:00:01]} c5 {[%clk 00:15:09]} {[%emt
00:00:02]} 2. d4 {[%clk 00:15:11]} {[%emt 00:00:01]} cxd4 {[%clk 00:15:12]}
{[%emt 00:00:02]} 3. c3 {[%clk 00:15:16]} dxc3 {[%clk 00:15:14]} {[%emt
00:00:02]} 4. Nxc3 {[%clk 00:15:19]} Nc6 {[%clk 00:15:17]} {[%emt 00:00:02]} 5.
Nf3 {[%clk 00:15:23]} {[%emt 00:00:02]} e6 {[%clk 00:15:20]} {[%emt 00:00:02]}
6. Bc4 {[%clk 00:15:24]} {[%emt 00:00:03]} Nge7 {[%clk 00:15:22]} {[%emt
00:00:03]} 7. O-O {[%clk 00:15:23]} {[%emt 00:00:07]} Ng6 {[%clk 00:15:25]}
{[%emt 00:00:01]} 8. Qe2 {[%clk 00:14:43]} {[%emt 00:00:45]} Be7 {[%clk
00:15:24]} {[%emt 00:00:07]} 9. Rd1 {[%clk 00:14:47]} {[%emt 00:00:01]} O-O
{[%clk 00:15:23]} {[%emt 00:00:06]} 10. Be3 {[%clk 00:14:30]} {[%emt 00:00:22]}
a6 {[%clk 00:15:21]} {[%emt 00:00:07]} 11. a4 {[%clk 00:14:33]} {[%emt
00:00:01]} b6 {[%clk 00:15:06]} {[%emt 00:00:20]} 12. Rd2 {[%clk 00:13:45]}
{[%emt 00:00:54]} Bb7 {[%clk 00:14:18]} {[%emt 00:00:53]} 13. Rad1 {[%clk
00:13:49]} d6 {[%clk 00:14:13]} {[%emt 00:00:10]} 14. h4 {[%clk 00:13:20]}
{[%emt 00:00:33]} Qc7 {[%clk 00:13:47]} {[%emt 00:00:31]} 15. h5 {[%clk
00:13:07]} {[%emt 00:00:19]} Nge5 {[%clk 00:13:48]} {[%emt 00:00:04]} 16. Ba2
{[%clk 00:12:48]} {[%emt 00:00:23]} Nxf3+ {[%clk 00:13:01]} {[%emt 00:00:52]}
17. Qxf3 {[%clk 00:12:15]} {[%emt 00:00:39]} h6 {[%clk 00:12:29]} {[%emt
00:00:37]} 18. Qg3 {[%clk 00:12:06]} {[%emt 00:00:14]} Kh8 {[%clk 00:12:06]}
{[%emt 00:00:27]} 19. Rc1 {[%clk 00:11:50]} {[%emt 00:00:22]} Qd7 {[%clk
00:11:41]} {[%emt 00:00:30]} 20. Bxb6 {[%clk 00:11:43]} {[%emt 00:00:13]} Rab8
{[%clk 00:10:11]} {[%emt 00:01:34]} 21. a5 {[%clk 00:11:39]} {[%emt 00:00:08]}
Nb4 {[%clk 00:09:29]} {[%emt 00:00:48]} 22. Bb1 {[%clk 00:11:37]} {[%emt
00:00:06]} d5 {[%clk 00:09:10]} {[%emt 00:00:25]} 23. Bd4 {[%clk 00:08:45]}
{[%emt 00:02:56]} Bg5 {[%clk 00:07:40]} {[%emt 00:01:35]} 24. f4 {[%clk
00:08:25]} {[%emt 00:00:26]} Bf6 {[%clk 00:07:43]} {[%emt 00:00:02]} 25. Bc5
{[%clk 00:07:29]} {[%emt 00:01:00]} Be7 {[%clk 00:07:11]} {[%emt 00:00:37]} 26.
Bd4 {[%clk 00:06:57]} {[%emt 00:00:38]} Bf6 {[%clk 00:07:13]} {[%emt 00:00:03]}
27. e5 {[%clk 00:06:34]} {[%emt 00:00:27]} Bd8 {[%clk 00:06:41]} {[%emt
00:00:38]} 28. f5 {[%clk 00:06:35]} {[%emt 00:00:04]} Bxa5 {[%clk 00:05:11]}
{[%emt 00:01:35]} 29. f6 {[%clk 00:04:55]} {[%emt 00:01:44]} gxf6 {[%clk
00:05:06]} {[%emt 00:00:10]} 30. Qf4 {[%clk 00:04:58]} {[%emt 00:00:02]} f5
{[%clk 00:04:10]} {[%emt 00:01:02]} 31. Qxh6+ {[%clk 00:04:51]} {[%emt
00:00:12]} Kg8 {[%clk 00:04:14]} {[%emt 00:00:01]} 32. Qg5+ {[%clk 00:02:58]}
{[%emt 00:01:57]} Kh7 {[%clk 00:03:38]} {[%emt 00:00:41]} 33. Bxf5+ {[%clk
00:02:20]} {[%emt 00:00:43]} exf5 {[%clk 00:03:06]} {[%emt 00:00:37]} 34. e6
{[%clk 00:02:24]} {[%emt 00:00:02]} Rg8 {[%clk 00:02:11]} {[%emt 00:01:00]} 35.
Qxf5+ {[%clk 00:02:26]} {[%emt 00:00:02]} Kh6 {[%clk 00:02:09]} {[%emt
00:00:07]} 36. exd7 {[%clk 00:02:22]} {[%emt 00:00:09]} Rg5 {[%clk 00:01:51]}
{[%emt 00:00:24]} 37. Be3 {[%clk 00:02:12]} {[%emt 00:00:14]} Bc8 {[%emt
00:00:23]} 38. Ra1 1-0

[Event "Rapid Tournament (RAP)"]
[Site "Biel, Switzerland"]
[Date "2026.07.12"]
[Round "8.39"]
[White "Javet, Blaise"]
[Black "Gaier, Walter"]
[Result "1-0"]
[TimeControl "15 + 5"]
[WhiteTitle "-"]
[BlackTitle "-"]
[WhiteFideId "1305026"]
[BlackFideId "1310186"]
[WhiteElo "1980"]
[BlackElo "1832"]

1. e4 {[%clk 00:15:06]} {[%emt 00:00:06]} c5 {[%clk 00:15:09]} 2. Nf3 {[%clk
00:15:09]} {[%emt 00:00:02]} d6 {[%clk 00:15:13]} {[%emt 00:00:01]} 3. d4
{[%clk 00:15:11]} {[%emt 00:00:03]} cxd4 {[%clk 00:15:16]} {[%emt 00:00:01]} 4.
Nxd4 {[%clk 00:15:15]} {[%emt 00:00:02]} Nf6 {[%clk 00:15:19]} {[%emt
00:00:02]} 5. Nc3 {[%clk 00:15:18]} {[%emt 00:00:01]} a6 {[%clk 00:15:23]}
{[%emt 00:00:02]} 6. Bg5 {[%clk 00:14:56]} {[%emt 00:00:26]} e6 {[%clk
00:15:25]} {[%emt 00:00:03]} 7. f4 {[%clk 00:15:00]} {[%emt 00:00:02]} Be7
{[%clk 00:14:24]} {[%emt 00:01:07]} 8. Qf3 {[%clk 00:14:58]} {[%emt 00:00:07]}
Qc7 {[%clk 00:13:07]} {[%emt 00:01:22]} 9. O-O-O {[%clk 00:14:53]} {[%emt
00:00:10]} Nbd7 {[%clk 00:11:54]} {[%emt 00:01:19]} 10. Bd3 {[%clk 00:14:43]}
{[%emt 00:00:13]} b5 {[%clk 00:09:56]} {[%emt 00:02:04]} 11. a3 {[%clk
00:14:44]} {[%emt 00:00:03]} Bb7 {[%clk 00:09:59]} {[%emt 00:00:03]} 12. Rhe1
{[%clk 00:14:19]} {[%emt 00:00:29]} h6 {[%clk 00:07:33]} {[%emt 00:02:32]} 13.
Bh4 {[%clk 00:13:44]} {[%emt 00:00:39]} Rc8 {[%clk 00:03:53]} {[%emt 00:03:46]}
14. Kb1 {[%clk 00:11:39]} {[%emt 00:02:10]} Nxe4 {[%clk 00:02:50]} {[%emt
00:01:08]} 15. Bxe4 {[%clk 00:11:07]} {[%emt 00:00:36]} Bxe4 {[%clk 00:02:45]}
{[%emt 00:00:11]} 16. Qxe4 {[%clk 00:10:16]} {[%emt 00:00:56]} Bxh4 {[%clk
00:02:47]} {[%emt 00:00:02]} 17. f5 {[%clk 00:05:01]} {[%emt 00:05:20]} Bxe1
{[%clk 00:01:46]} {[%emt 00:01:06]} 18. Nd5 {[%clk 00:04:19]} {[%emt 00:00:48]}
Qc4 {[%clk 00:01:02]} {[%emt 00:00:49]} 19. fxe6 {[%clk 00:04:06]} {[%emt
00:00:17]} Ne5 {[%clk 00:00:44]} {[%emt 00:00:24]} 20. exf7+ {[%clk 00:04:05]}
{[%emt 00:00:06]} Kf8 {[%clk 00:00:08]} {[%emt 00:00:42]} 21. Rxe1 {[%clk
00:03:47]} {[%emt 00:00:22]} 1-0

[Event "Rapid Tournament (RAP)"]
[Site "Biel, Switzerland"]
[Date "2026.07.12"]
[Round "8.40"]
[White "Alexakis, Dimitrios"]
[Black "Surdez, Patrick"]
[Result "1-0"]
[TimeControl "15 + 5"]
[WhiteTitle "-"]
[BlackTitle "-"]
[WhiteFideId "4200527"]
[BlackFideId "1380206"]
[WhiteElo "1954"]
[BlackElo "1695"]

1. e4 {[%clk 00:15:06]} {[%emt 00:00:04]} c5 {[%clk 00:15:02]} {[%emt
00:00:08]} 2. Nf3 {[%clk 00:15:06]} {[%emt 00:00:04]} Nc6 {[%clk 00:15:05]}
{[%emt 00:00:03]} 3. d4 {[%clk 00:15:05]} {[%emt 00:00:06]} cxd4 {[%clk
00:15:08]} {[%emt 00:00:02]} 4. Nxd4 {[%clk 00:15:08]} {[%emt 00:00:02]} e5
{[%clk 00:14:57]} {[%emt 00:00:16]} 5. Nb5 {[%clk 00:15:05]} {[%emt 00:00:07]}
d6 {[%clk 00:15:00]} {[%emt 00:00:03]} 6. c4 {[%clk 00:15:01]} {[%emt
00:00:10]} a6 {[%clk 00:14:48]} {[%emt 00:00:17]} 7. N5c3 {[%clk 00:15:03]}
{[%emt 00:00:02]} Nf6 {[%clk 00:14:31]} {[%emt 00:00:22]} 8. Be2 {[%clk
00:14:44]} {[%emt 00:00:23]} Be7 {[%clk 00:14:00]} {[%emt 00:00:37]} 9. O-O
{[%clk 00:14:46]} {[%emt 00:00:03]} O-O {[%clk 00:13:49]} {[%emt 00:00:16]} 10.
Be3 {[%clk 00:14:47]} {[%emt 00:00:04]} Rb8 {[%clk 00:11:31]} {[%emt 00:02:24]}
11. f3 {[%clk 00:13:41]} {[%emt 00:01:10]} Ne8 {[%clk 00:10:46]} {[%emt
00:00:51]} 12. Na3 {[%clk 00:13:27]} {[%emt 00:00:18]} Nc7 {[%clk 00:10:40]}
{[%emt 00:00:12]} 13. Bb6 {[%clk 00:13:07]} {[%emt 00:00:24]} Qd7 {[%clk
00:10:19]} {[%emt 00:00:26]} 14. Nc2 {[%clk 00:12:51]} {[%emt 00:00:21]} Re8
{[%clk 00:09:25]} {[%emt 00:00:59]} 15. Nd5 {[%clk 00:11:30]} {[%emt 00:01:26]}
Nxd5 {[%clk 00:08:44]} {[%emt 00:00:47]} 16. cxd5 {[%clk 00:11:27]} {[%emt
00:00:07]} Nd8 {[%clk 00:08:41]} {[%emt 00:00:08]} 17. Qd3 {[%clk 00:10:48]}
{[%emt 00:00:44]} f5 {[%clk 00:08:15]} {[%emt 00:00:32]} 18. a4 {[%clk
00:10:45]} {[%emt 00:00:07]} Nf7 {[%clk 00:08:00]} {[%emt 00:00:21]} 19. Ne3
{[%clk 00:10:03]} {[%emt 00:00:45]} Nh6 {[%clk 00:07:46]} {[%emt 00:00:20]} 20.
Nc4 {[%clk 00:09:39]} {[%emt 00:00:29]} Bg5 {[%clk 00:07:02]} {[%emt 00:00:50]}
21. Qa3 {[%clk 00:08:41]} {[%emt 00:01:02]} Be7 {[%clk 00:06:43]} {[%emt
00:00:25]} 22. Rac1 {[%clk 00:08:33]} {[%emt 00:00:12]} Rf8 {[%clk 00:06:38]}
{[%emt 00:00:10]} 23. a5 {[%clk 00:08:04]} {[%emt 00:00:34]} Rf6 {[%clk
00:06:16]} {[%emt 00:00:27]} 24. Ne3 {[%clk 00:06:14]} {[%emt 00:01:54]} Bd8
{[%clk 00:04:52]} {[%emt 00:01:30]} 25. exf5 {[%clk 00:05:40]} {[%emt
00:00:39]} Bxb6 {[%clk 00:03:10]} {[%emt 00:01:46]} 26. axb6 {[%clk 00:05:43]}
{[%emt 00:00:02]} Qd8 {[%clk 00:03:12]} {[%emt 00:00:04]} 27. Qb4 {[%clk
00:05:25]} {[%emt 00:00:22]} Nxf5 {[%clk 00:01:28]} {[%emt 00:01:49]} 28. Nxf5
{[%clk 00:05:28]} {[%emt 00:00:02]} Bxf5 {[%clk 00:01:31]} {[%emt 00:00:02]} 29.
Rc7 {[%clk 00:05:28]} {[%emt 00:00:05]} Rg6 {[%clk 00:01:28]} {[%emt 00:00:09]}
30. g3 {[%clk 00:04:50]} {[%emt 00:00:42]} Bh3 {[%clk 00:01:06]} {[%emt
00:00:27]} 31. Rf2 {[%clk 00:04:04]} {[%emt 00:00:50]} Qg5 {[%clk 00:01:10]}
{[%emt 00:00:03]} 32. f4 {[%clk 00:03:53]} {[%emt 00:00:15]} exf4 {[%clk
00:00:55]} {[%emt 00:00:20]} 33. Qxf4 {[%clk 00:03:51]} {[%emt 00:00:06]} Qxf4
{[%clk 00:00:28]} {[%emt 00:00:33]} 34. Rxf4 {[%clk 00:03:54]} {[%emt
00:00:02]} Rf6 {[%clk 00:00:23]} {[%emt 00:00:11]} 35. Rxf6 {[%clk 00:03:50]}
{[%emt 00:00:09]} gxf6 {[%clk 00:00:18]} {[%emt 00:00:10]} 36. Kf2 {[%clk
00:03:43]} {[%emt 00:00:11]} 1-0